[Event "55th Ladies GM 2024"]
[Site "Belgrade9"]
[Date "2024.03.02"]
[Round "1.1"]
[White "Kulkarni Bhakti"]
[Black "Pogorelskikh, Sofia"]
[Result "1-0"]
[ECO "D78"]
[WhiteElo "2372"]
[BlackElo "2214"]
[Annotator "TA"]
[PlyCount "133"]
[EventDate "2024.03.02"]
[EventType "tourn"]
[EventCountry "SRB"]
[SourceTitle "playchess.com"]
[Source "ChessBase"]
[SourceQuality "1"]
[TimeControl "40/5400+30:1800+30"]

{[%evp 15,133,-32,-31,-30,-35,-78,-25,-75,-64,-82,-69,-78,-79,-72,-38,-27,-37,-67,-77,-79,0,0,88,78,91,88,94,83,100,99,96,89,75,67,141,141,139,144,145,145,145,135,139,133,136,128,144,104,144,155,168,163,232,185,177,164,170,174,178,160,166,144,150,142,169,141,152,134,176,176,162,162,252,384,362,269,847,781,971,880,894,865,1047,942,1184,963,1173,1411,1595,1423,5639,5639,29968,29969,29971,29969,29969,29966,29966,29966,29965,29965,29964,29966,29967,29968,29975,29976,29976,29977,29976,29977,29979,29980,29980,29981,29982,29983,29983,29983]} 1. Nf3 {[%emt 0:00:25]} d5 {[%emt 0:00:52]} 2. g3 {[%emt 0:00:18]} g6 {[%emt 0:00:23]} 3. Bg2 {[%emt 0:00:28]} Bg7 {[%emt 0:00:26]} 4. d4 {[%emt 0:00:14]} Nf6 {[%emt 0:00:42]} 5. O-O {[%emt 0:01:03]} O-O {[%emt 0:00:44]} 6. c4 {[%emt 0:00:10]} c6 {[%emt 0:00:37]} 7. a4 {[%emt 0:00:21] D78: Fianchetto Grünfeld: 6 0-0 c6.} Be6 {[%emt 0:02:47]} 8. Qb3 $146 {[%emt 0:08:55]} ({Predecessor:} 8. Nc3 dxc4 9. e4 Na6 10. h3 Nb4 11. Be3 Qc8 12. Kh2 a5 13. Qe2 Ne8 14. Rad1 f5 {½-½ Bluebaum,M (2647)-Eljanov,P (2697) Bundesliga 2223 2022 (14.1)}) 8... Qb6 {[%emt 0:21:33]} 9. Qa3 {[%emt 0:00:54]} dxc4 {[%emt 0:11:02]} 10. Qxe7 {[%emt 0:07:24] [#]} Re8 {[%emt 0:03:47]} (10... a5 $1 $17) 11. Qd6 {[%emt 0:08:03] [#]} (11. a5 $11 Qb3 12. Qa3) 11... a5 $1 $17 {[%emt 0:14:10]} 12. Qf4 {[%emt 0:12:50]} Na6 {[%emt 0:02:30]} 13. Qh4 {[%emt 0:04:31]} Bd5 {[%emt 0:07:08]} 14. Nc3 {[%emt 0:16:21]} Ne4 {[%emt 0:02:36]} 15. Ng5 {[%emt 0:08:45]} Nxg5 {[%emt 0:01:46]} 16. Nxd5 {[%emt 0:07:29]} cxd5 {[%emt 0:00:11]} 17. Bxg5 {[%emt 0:00:15]} Rxe2 {[%emt 0:07:56]} (17... Bxd4 $2 {is the wrong capture.} 18. Bxd5 Nb4 19. Bxc4 $18) (17... Nb4 $17 18. e3 Qc6) 18. Bxd5 $11 {[%emt 0:02:19]} Nb4 {[%emt 0:06:13]} (18... Qxd4 $11 {keeps the balance.} 19. Qxd4 Bxd4) 19. Bxc4 $16 {[%emt 0:01:12]} Rc2 {[%emt 0:01:31]} 20. Rac1 {[%emt 0:07:06]} Rxc1 {[%emt 0:04:38]} 21. Rxc1 {[%emt 0:00:10]} Qxd4 {[%emt 0:01:00]} 22. Qxd4 {[%emt 0:01:10]} Bxd4 {[%emt 0:00:05]} 23. b3 {[%emt 0:02:09]} Kg7 {[%emt 0:02:37]} 24. Bb5 {[%emt 0:02:52]} Nc6 {[%emt 0:03:32]} (24... Bb6 $14) 25. Bxc6 $16 {[%emt 0:02:35]} bxc6 {[%emt 0:00:06]} 26. Rxc6 {[%emt 0:00:08]} Rb8 {[%emt 0:01:00]} 27. Rd6 {[%emt 0:00:32]} Bc3 {[%emt 0:00:50]} 28. Rd3 {[%emt 0:00:17]} Bb4 {[%emt 0:02:15]} (28... Rxb3 $2 {too greedy.} 29. Kg2 $18) 29. Bf4 {[%emt 0:01:17]} Re8 {[%emt 0:00:44]} 30. Be3 {[%emt 0:00:23]} h5 {[%emt 0:01:04]} 31. Rd7 {[%emt 0:01:01]} Bc3 {[%emt 0:00:23]} 32. Rc7 {[%emt 0:00:18]} Bf6 {[%emt 0:00:38]} 33. Rc5 {[%emt 0:00:56]} Rb8 {[%emt 0:00:39]} (33... Ra8 {was worth a try.} 34. Bd2 Bd8) 34. Rb5 {[%emt 0:00:05]} Ra8 {[%emt 0:00:24]} 35. Bd2 {[%emt 0:02:12]} Bd8 {[%emt 0:00:21]} 36. Kf1 {[%emt 0:00:23]} Kf8 {[%emt 0:00:36]} 37. Ke2 {[%emt 0:00:51]} Ke8 {[%emt 0:00:11]} 38. Rb7 {[%emt 0:00:21]} Ra6 {[%emt 0:00:32]} 39. Be3 {[%emt 0:00:43]} Rc6 {[%emt 0:00:52]} 40. Bd4 {[%emt 0:00:27]} Rc1 {[%emt 0:00:36]} 41. h4 {[%emt 0:31:11]} Be7 {[%emt 0:09:06]} 42. Be3 {[%emt 0:00:00]} Rc6 {[%emt 0:02:10]} 43. Rb6 {[%emt 0:00:00]} Rxb6 {[%emt 0:03:49]} (43... Rc8 {is a better defense.} 44. Bd2 Bd8) 44. Bxb6 $18 {[%emt 0:00:00]} Bb4 {[%emt 0:00:08]} 45. Be3 {[%emt 0:00:00]} Bd6 $2 {[%emt 0:02:37]} (45... Be7 46. Bg5 Bd6) 46. Bd2 $18 {[%emt 0:00:00]} Bc7 {[%emt 0:00:11]} 47. Kd3 {[%emt 0:00:00]} Kd7 {[%emt 0:00:08]} 48. Kc4 {[%emt 0:00:00]} Kc6 {[%emt 0:00:09]} 49. b4 {[%emt 0:00:00]} axb4 {[%emt 0:00:13]} 50. Kxb4 {[%emt 0:00:00]} ({Not} 50. Bxb4 Bb6 $16) 50... Bd8 {[%emt 0:04:07]} 51. a5 {[%emt 0:00:00]} f6 {[%emt 0:02:19]} 52. Kc4 {[%emt 0:00:00]} g5 {[%emt 0:01:33]} 53. a6 {[%emt 0:00:00]} gxh4 {[%emt 0:05:02]} 54. gxh4 {[%emt 0:00:00]} f5 {[%emt 0:00:15]} 55. Bg5 {[%emt 0:00:00]} Bb6 {[%emt 0:00:32]} 56. f3 {[%emt 0:00:00]} Ba7 {[%emt 0:01:33]} 57. Bf6 {[%emt 0:00:00]} Bf2 {[%emt 0:00:25]} 58. Bd8 {[%emt 0:00:00]} Kd7 {[%emt 0:00:51]} 59. Bg5 {[%emt 0:00:00]} Kc6 {[%emt 0:00:48]} 60. Bf6 {[%emt 0:00:00]} Bg3 {[%emt 0:03:54]} 61. a7 {[%emt 0:00:00]} Kb7 {[%emt 0:00:07]} 62. Kd5 {[%emt 0:00:00]} Kxa7 {[%emt 0:00:56]} 63. Ke6 {[%emt 0:00:00]} Kb7 {[%emt 0:00:19]} 64. Kxf5 {[%emt 0:00:05]} Kc6 {[%emt 0:00:09]} 65. Kg6 {[%emt 0:00:30]} Kd7 {[%emt 0:00:10]} 66. Kxh5 {[%emt 0:00:07]} Ke8 {[%emt 0:00:09]} 67. Kg6 {[%emt 0:00:06]} 1-0

[Event "55th Ladies GM 2024"]
[Site "Belgrade9"]
[Date "2024.03.02"]
[Round "1.2"]
[White "Maltsevskaya, Aleksandra"]
[Black "Doluhanova, Evgeniya"]
[Result "1-0"]
[ECO "C65"]
[WhiteElo "2374"]
[BlackElo "2261"]
[Annotator "TA"]
[PlyCount "113"]
[EventDate "2024.03.02"]
[EventType "tourn"]
[EventCountry "SRB"]
[SourceTitle "playchess.com"]
[Source "ChessBase"]
[SourceQuality "1"]
[TimeControl "40/5400+30:1800+30"]

{[%evp 16,113,22,16,19,15,42,0,55,64,56,14,45,-9,63,53,50,61,68,72,81,91,91,33,9,10,14,19,0,15,92,106,112,90,84,88,90,93,85,84,73,39,31,41,32,47,90,93,95,78,68,39,96,107,103,100,129,122,212,204,203,208,234,228,231,223,369,174,168,166,146,156,148,129,151,118,280,262,226,227,472,468,494,297,371,371,343,371,358,349,464,441,715,468,685,521,501,480,5097,5097]} 1. e4 {[%emt 0:00:06]} e5 {[%emt 0:00:04]} 2. Nf3 {[%emt 0:00:06]} Nc6 {[%emt 0:00:02]} 3. Bb5 {[%emt 0:00:07]} Nf6 {[%emt 0:00:04]} 4. d3 {[%emt 0:00:07]} Bc5 {[%emt 0:00:09]} 5. Bxc6 {[%emt 0:01:32]} dxc6 {[%emt 0:00:22]} 6. Nbd2 {[%emt 0:00:08] C65: Ruy Lopez: Berlin Defence (3...Nf6), unusual lines and 4 0-0 Bc5.} Qe7 {[%emt 0:01:14] 6...Nd7 is setting a new trend.} 7. O-O {[%emt 0:08:23]} O-O {[%emt 0:04:38]} 8. Nc4 {[%emt 0:01:05]} Nd7 {[%emt 0:09:50]} 9. c3 {[%emt 0:08:10]} b5 $146 {[%emt 0:04:53]} ({Predecessor:} 9... Bd6 10. Re1 Re8 11. d4 f6 12. dxe5 Nxe5 13. Nfxe5 Bxe5 14. Be3 b6 15. f3 Qf7 16. Nxe5 Rxe5 {1-0 Duda,J (2750)-Hansen,E (2606) Oslo Esports Cup rapid 2022 (7.2)}) 10. Ne3 {[%emt 0:21:41]} Nf6 {[%emt 0:02:22]} 11. d4 {[%emt 0:02:27]} Bd6 {[%emt 0:01:15]} (11... exd4 $1 $11 12. cxd4 Bb6) 12. dxe5 $14 {[%emt 0:07:30]} Bxe5 {[%emt 0:00:08]} 13. a4 {[%emt 0:01:31]} Rd8 {[%emt 0:12:01]} 14. Qb3 {[%emt 0:17:51]} (14. Qe2 $14) 14... Be6 {[%emt 0:15:07]} ({Better is} 14... Nxe4 $11 15. axb5 Nc5) 15. Qc2 $14 {[%emt 0:01:13]} Bd7 {[%emt 0:07:36]} 16. Re1 {[%emt 0:06:06]} Re8 {[%emt 0:09:22]} 17. Nf1 {[%emt 0:12:52]} h6 {[%emt 0:07:23]} 18. Nxe5 {[%emt 0:04:21]} Qxe5 {[%emt 0:00:05]} 19. f4 {[%emt 0:00:05]} (19. f3 $16) 19... Qh5 $14 {[%emt 0:04:22]} 20. e5 {[%emt 0:01:24]} Bf5 {[%emt 0:04:12]} 21. Qd1 {[%emt 0:02:30]} Qxd1 {[%emt 0:09:09]} 22. Rxd1 {[%emt 0:00:06]} Bg4 {[%emt 0:00:14]} (22... Ne4 $1 $11 {remains equal.}) 23. Rd4 $16 {[%emt 0:01:52]} Nh7 {[%emt 0:06:29]} 24. axb5 {[%emt 0:00:28]} cxb5 {[%emt 0:00:08]} 25. Ne3 {[%emt 0:00:44]} Be6 {[%emt 0:00:14]} 26. f5 {[%emt 0:00:18]} Bb3 {[%emt 0:00:34]} 27. Ra3 $1 {[%emt 0:00:30]} c5 {[%emt 0:01:00]} 28. Rd7 {[%emt 0:00:40]} c4 $1 {[%emt 0:00:42]} 29. Raxa7 {[%emt 0:00:33]} Rxa7 {[%emt 0:00:06]} 30. Rxa7 {[%emt 0:00:03]} Rxe5 {[%emt 0:00:24]} 31. Ra8+ {[%emt 0:00:45]} Nf8 {[%emt 0:00:05]} 32. Kf2 {[%emt 0:00:43]} f6 {[%emt 0:00:15]} 33. Rb8 {[%emt 0:00:26]} Kf7 {[%emt 0:00:45]} (33... h5 $14) 34. Rb7+ $16 {[%emt 0:00:04]} Kg8 {[%emt 0:00:17]} 35. g4 {[%emt 0:00:06]} Ba4 {[%emt 0:00:53]} 36. h3 {[%emt 0:00:25]} Re8 {[%emt 0:01:24]} (36... Nh7 $16 {keeps fighting.}) 37. Nd5 $18 {[%emt 0:00:49]} Rd8 {[%emt 0:00:25]} 38. Nf4 $1 {[%emt 0:01:02]} (38. Ne7+ Kh7 $11) 38... Rd7 {[%emt 0:00:27]} 39. Rb8 {[%emt 0:00:08]} Kf7 {[%emt 0:00:05]} 40. Be3 {[%emt 0:00:18]} Re7 {[%emt 0:01:11]} (40... g5 $142) 41. Bc5 {[%emt 0:30:18]} (41. Nd5 $142 Nd7 42. Rb7) 41... Nd7 $18 {[%emt 0:00:44]} 42. Rc8 $1 {[%emt 0:00:00]} Nxc5 {[%emt 0:03:11]} 43. Rxc5 {[%emt 0:00:00]} Ke8 {[%emt 0:02:37]} 44. Ne6 {[%emt 0:00:00]} Rd7 {[%emt 0:00:44]} 45. Ke2 {[%emt 0:00:00]} h5 $2 {[%emt 0:04:26] [#]} (45... Kf7 $16 46. Nf4 Ke8) 46. Rc8+ $1 $18 {[%emt 0:00:00]} (46. gxh5 $6 Bd1+ 47. Kf2 Bxh5 $16) 46... Ke7 {[%emt 0:03:50] [#]} 47. Rg8 $1 {[%emt 0:00:00]} (47. Nxg7 hxg4 48. hxg4 Bd1+ 49. Ke3 Bxg4 $14) (47. gxh5 $6 Bd1+ 48. Kf2 Bxh5 $14) 47... Bd1+ $2 {[%emt 0:06:45]} (47... Kd6 {was called for.} 48. gxh5 (48. Nxg7 Re7+ 49. Kf2 hxg4 $18) 48... Ke5 49. Rxg7 Rd3) 48. Ke1 $18 {[%emt 0:00:00]} hxg4 {[%emt 0:00:11]} 49. hxg4 {[%emt 0:00:00]} (49. Nxg7 gxh3 50. Ne6 Bf3 $19) 49... Rd3 {[%emt 0:00:30]} 50. Rxg7+ {[%emt 0:00:00]} (50. Nxg7 $2 {perishes.} Kf7 (50... Bxg4 51. Rb8 $11) 51. Rb8 Kxg7 $19) 50... Kd6 {[%emt 0:00:05]} 51. Nf4 {[%emt 0:00:00]} Rf3 {[%emt 0:00:17]} 52. Nh5 {[%emt 0:00:00]} Bb3 {[%emt 0:02:05]} 53. Nxf6 {[%emt 0:00:00]} (53. Ke2 Rd3 54. Nxf6 Ke5 $18) 53... Ke5 {[%emt 0:00:05]} (53... Bc2 $142 54. Ke2 Rh3) 54. Nh5 {[%emt 0:00:00]} Bc2 {[%emt 0:00:55]} (54... b4 $142 55. Re7+ (55. cxb4 Kd6 $18) 55... Kd6) 55. Re7+ {[%emt 0:00:00]} Kd6 {[%emt 0:01:05]} 56. Re6+ {[%emt 0:00:00]} Kd5 {[%emt 0:00:22]} (56... Kc7 $142 57. Ke2 Rd3) 57. Ke2 {[%emt 0:00:00]} 1-0

[Event "55th Ladies GM 2024"]
[Site "Belgrade9"]
[Date "2024.03.02"]
[Round "1.3"]
[White "Vujovic, Vera"]
[Black "Djukic, Sandra"]
[Result "1-0"]
[ECO "B07"]
[WhiteElo "2175"]
[BlackElo "2127"]
[Annotator "RC"]
[PlyCount "69"]
[EventDate "2024.03.02"]
[EventType "tourn"]
[EventCountry "SRB"]
[SourceTitle "playchess.com"]
[Source "ChessBase"]
[SourceQuality "1"]
[TimeControl "40/5400+30:1800+30"]

1. e4 {[%emt 0:00:03]} d6 {[%emt 0:00:05]} 2. d4 {[%emt 0:00:09]} Nf6 {[%emt 0:00:05]} 3. Nc3 {[%emt 0:00:07]} e5 {[%emt 0:00:06]} 4. dxe5 {[%emt 0:00:22]} dxe5 {[%emt 0:00:05]} 5. Qxd8+ {[%emt 0:00:11]} Kxd8 {[%emt 0:00:02]} 6. f4 {[%emt 0:00:21]} Bb4 {[%emt 0:00:05]} 7. Bd2 {[%emt 0:05:31]} exf4 {[%emt 0:10:12]} 8. O-O-O {[%emt 0:15:01]} Bg4 {[%emt 0:30:37]} 9. Be2 {[%emt 0:03:04]} Nbd7 {[%emt 0:13:51]} 10. Bf3 {[%emt 0:07:03]} Kc8 {[%emt 0:21:33]} 11. Nge2 {[%emt 0:02:16]} Ne5 {[%emt 0:03:53]} 12. Bxg4+ {[%emt 0:02:14]} Nexg4 {[%emt 0:03:11]} 13. Rdf1 {[%emt 0:04:16]} Re8 {[%emt 0:01:20]} 14. h3 {[%emt 0:06:37]} Ne3 {[%emt 0:07:14]} 15. Rxf4 {[%emt 0:04:53]} Nxg2 {[%emt 0:01:12]} 16. Rf2 {[%emt 0:01:33]} Nh4 {[%emt 0:00:41]} 17. Bg5 {[%emt 0:10:09]} Bc5 {[%emt 0:04:12]} 18. Rff1 {[%emt 0:07:11]} Ng6 {[%emt 0:00:33]} 19. Bxf6 {[%emt 0:01:00]} gxf6 {[%emt 0:00:03]} 20. Rf3 {[%emt 0:28:29]} f5 21. Rxf5 {[%emt 0:00:00]} b5 {[%emt 0:01:26]} 22. Rxf7 {[%emt 0:00:00]} b4 {[%emt 0:00:06]} 23. Nd5 {[%emt 0:00:00]} Bd6 {[%emt 0:00:03]} 24. Nf6 {[%emt 0:00:00]} Re5 {[%emt 0:01:03]} 25. Rxh7 {[%emt 0:00:00]} Kb7 {[%emt 0:00:45]} 26. Rg1 {[%emt 0:00:00]} Nf8 {[%emt 0:00:26]} 27. Rf7 {[%emt 0:00:00]} Ne6 {[%emt 0:00:19]} 28. Rd1 {[%emt 0:00:00]} Ka6 {[%emt 0:00:47]} 29. h4 {[%emt 0:00:00]} Rh8 {[%emt 0:00:20]} 30. Ng3 {[%emt 0:00:00]} Ra5 {[%emt 0:00:40]} 31. Nf5 {[%emt 0:00:00]} Be5 {[%emt 0:00:32]} 32. Nd5 {[%emt 0:00:00]} Rb8 {[%emt 0:00:28]} 33. Re7 {[%emt 0:00:00]} Bf4+ {[%emt 0:00:33]} 34. Kb1 {[%emt 0:00:00]} Rxd5 {[%emt 0:00:04]} 35. Rxe6+ {[%emt 0:00:00]} 1-0

[Event "55th Ladies GM 2024"]
[Site "Belgrade9"]
[Date "2024.03.02"]
[Round "1.4"]
[White "Mehmed, Elif"]
[Black "Kubicka, Anna"]
[Result "1-0"]
[ECO "C45"]
[WhiteElo "2194"]
[BlackElo "2278"]
[Annotator "TA"]
[PlyCount "89"]
[EventDate "2024.03.02"]
[EventType "tourn"]
[EventCountry "SRB"]
[SourceTitle "playchess.com"]
[Source "ChessBase"]
[SourceQuality "1"]
[TimeControl "40/5400+30:1800+30"]

{[%evp 13,89,2,26,20,22,20,23,19,39,29,20,8,33,18,40,42,52,45,45,36,38,37,51,41,48,43,60,67,69,65,73,82,70,68,87,71,103,101,118,117,115,0,0,0,0,0,0,0,207,141,168,176,258,250,311,311,570,470,548,649,518,508,29978,29979,29979,29980,29981,29982,29982,29982,29982,29983,29984,29984,29984,29985,29985,29986]} 1. e4 {[%emt 0:00:06]} e5 {[%emt 0:00:10]} 2. Nf3 {[%emt 0:00:48]} Nc6 {[%emt 0:00:07]} 3. d4 {[%emt 0:00:30]} exd4 {[%emt 0:00:08]} 4. Nxd4 {[%emt 0:00:05]} Bc5 {[%emt 0:00:15]} 5. Nxc6 {[%emt 0:00:48]} Qf6 {[%emt 0:00:17]} 6. Qf3 {[%emt 0:00:12]} Qxf3 {[%emt 0:00:33]} 7. gxf3 {[%emt 0:00:06]} dxc6 {[%emt 0:00:30]} 8. Be3 {[%emt 0:01:38]} Bxe3 {[%emt 0:15:30]} 9. fxe3 {[%emt 0:00:05]} Be6 {[%emt 0:00:59]} 10. Bd3 {[%emt 0:08:33] White has an edge.} Ne7 {[%emt 0:01:49]} 11. Nd2 {[%emt 0:05:49]} c5 {[%emt 0:03:58]} 12. Rg1 {[%emt 0:07:45][%cal Oe1c1]} O-O {[%emt 0:04:08]} 13. Ke2 {[%emt 0:07:44]} f5 {[%emt 0:07:13]} 14. Rg5 {[%emt 0:05:03]} h6 {[%emt 0:05:33]} 15. Rg2 {[%emt 0:00:44]} Kh8 {[%emt 0:06:43]} 16. h4 {[%emt 0:03:08]} Rf7 {[%emt 0:07:52]} 17. Rag1 {[%emt 0:01:29]} Re8 {[%emt 0:10:37]} 18. b3 {[%emt 0:05:05]} b6 {[%emt 0:06:44]} 19. Nc4 {[%emt 0:07:15]} fxe4 {[%emt 0:01:24]} 20. Bxe4 {[%emt 0:00:13] aiming for Ne5.} Bxc4+ {[%emt 0:00:38]} 21. bxc4 {[%emt 0:00:05]} Rd8 $1 {[%emt 0:01:30] Against Bd5} 22. f4 {[%emt 0:03:05]} Rd6 {[%emt 0:03:58]} 23. Kf3 {[%emt 0:04:31]} Rd7 {[%emt 0:02:21]} 24. Bd3 {[%emt 0:05:57] White is more active.} Nc6 {[%emt 0:00:50]} 25. e4 {[%emt 0:01:28]} Rd4 {[%emt 0:03:42]} 26. Ke3 {[%emt 0:02:08]} Rfd7 {[%emt 0:01:25]} 27. Rg6 {[%emt 0:11:20]} ({White should try} 27. e5 $16) 27... Nb4 $11 {[%emt 0:08:23][%csl LRa2,LRd3][%cal Rb4d3]} 28. f5 {[%emt 0:06:37]} Nxd3 {[%emt 0:00:43]} 29. cxd3 {[%emt 0:00:04]} Rxd3+ {[%emt 0:00:05][%mdl 4096] Endgame. KRR-KRR} 30. Kf4 {[%emt 0:13:09]} R3d6 $2 {[%emt 0:03:35]} (30... Kh7 $11 {and Black stays safe.}) 31. Rxd6 $18 {[%emt 0:00:00]} cxd6 {[%emt 0:02:05] KR-KR} 32. Rd1 {[%emt 0:00:00]} Kg8 {[%emt 0:00:15] [#]} (32... Kh7 $142 33. h5 Kg8) 33. Kf3 $1 {[%emt 0:00:00] Hoping for e5.} Kf8 {[%emt 0:01:04]} 34. e5 {[%emt 0:00:00]} Rf7 $2 {[%emt 0:01:49]} (34... Ke7) 35. exd6 {[%emt 0:00:00] Black must now prevent d7.} Ke8 {[%emt 0:00:11] [#]} 36. Ke4 {[%emt 0:00:00]} Kd7 {[%emt 0:00:41]} 37. Ke5 {[%emt 0:00:00]} Kc6 {[%emt 0:00:27]} (37... Rf6 $18 38. Rd3 Rf7) 38. Ke6 {[%emt 0:00:00] White mates.} Rd7 {[%emt 0:00:16]} 39. a4 {[%emt 0:00:03]} h5 {[%emt 0:00:22]} 40. Rd2 {[%emt 0:00:08]} a6 {[%emt 0:00:24]} 41. Rd1 {[%emt 0:30:26]} Rd8 {[%emt 0:11:31]} 42. d7 {[%emt 0:00:00]} b5 {[%emt 0:02:57]} 43. axb5+ {[%emt 0:00:00]} axb5 {[%emt 0:00:03]} 44. cxb5+ {[%emt 0:00:00]} Kxb5 {[%emt 0:00:22]} 45. Ke7 {[%emt 0:00:00] Weighted Error Value: White=0.05 (flawless) /Black=0.41.  Loses game:     	---       	Black=1      Mistake:       	White=1     	Black=2      Inaccurate:     	---       	Black=1      OK:         	White=12    	Black=8      Best:        	White=5     	Black=1      Strong:       	White=1     	Black=1} 1-0

[Event "55th Ladies GM 2024"]
[Site "Belgrade9"]
[Date "2024.03.02"]
[Round "1.5"]
[White "Lu, Miaoyi"]
[Black "Xu, Yuanyuan"]
[Result "1-0"]
[ECO "B38"]
[WhiteElo "2392"]
[BlackElo "2288"]
[Annotator "RC"]
[PlyCount "127"]
[EventDate "2024.03.02"]
[EventType "tourn"]
[EventCountry "SRB"]
[SourceTitle "playchess.com"]
[Source "ChessBase"]
[SourceQuality "1"]
[TimeControl "40/5400+30:1800+30"]

1. e4 {[%emt 0:00:04]} c5 {[%emt 0:00:28]} 2. Nf3 {[%emt 0:06:33]} g6 {[%emt 0:00:43]} 3. d4 {[%emt 0:01:22]} cxd4 {[%emt 0:00:16]} 4. Nxd4 {[%emt 0:02:50]} Nc6 {[%emt 0:00:36]} 5. c4 {[%emt 0:02:25]} Bg7 {[%emt 0:03:31]} 6. Be3 {[%emt 0:00:05]} Nf6 {[%emt 0:00:14]} 7. Nc3 {[%emt 0:00:07]} O-O {[%emt 0:00:08]} 8. Be2 {[%emt 0:03:21]} d6 {[%emt 0:00:34]} 9. O-O {[%emt 0:00:04]} Bd7 {[%emt 0:02:42]} 10. Qd2 {[%emt 0:03:51]} Nxd4 {[%emt 0:02:56]} 11. Bxd4 {[%emt 0:00:04]} Bc6 {[%emt 0:00:11]} 12. f3 {[%emt 0:00:21]} a5 {[%emt 0:03:49]} 13. b3 {[%emt 0:04:23]} Nd7 {[%emt 1:20:52]} 14. Be3 {[%emt 0:02:57]} Nc5 {[%emt 0:00:00]} 15. Rab1 {[%emt 0:02:59]} Qb6 {[%emt 0:00:00]} 16. Rfc1 {[%emt 0:05:33]} Rfc8 {[%emt 0:00:00]} 17. Bf1 {[%emt 0:02:55]} Qb4 {[%emt 0:00:00]} 18. Qb2 {[%emt 0:03:26]} Qb6 {[%emt 0:00:00]} 19. Qf2 {[%emt 0:05:40]} Qb4 {[%emt 0:00:00]} 20. Bd2 {[%emt 0:04:46]} Qb6 {[%emt 0:00:00]} 21. Rc2 {[%emt 0:02:33]} Rab8 {[%emt 0:00:00]} 22. Be3 {[%emt 0:01:54]} Qb4 {[%emt 0:00:00]} 23. Nb5 {[%emt 0:01:30]} Bxb5 {[%emt 0:00:00]} 24. cxb5 {[%emt 0:00:04]} Ne6 {[%emt 0:00:00]} 25. Bc4 {[%emt 0:02:54]} a4 {[%emt 0:00:00]} 26. Kh1 {[%emt 0:06:18]} axb3 {[%emt 0:00:00]} 27. axb3 {[%emt 0:03:01]} Ra8 {[%emt 0:07:00]} 28. f4 {[%emt 0:00:55]} Rf8 {[%emt 0:00:00]} 29. f5 {[%emt 0:05:14]} Nc5 {[%emt 0:00:00]} 30. e5 {[%emt 0:07:32]} Bxe5 {[%emt 0:00:00]} 31. Qh4 {[%emt 0:00:14]} d5 {[%emt 0:00:00]} 32. Bd2 {[%emt 0:01:48]} Bf6 {[%emt 0:00:00]} 33. Qh6 {[%emt 0:00:29]} Qa3 {[%emt 0:00:00]} 34. Bxd5 {[%emt 0:00:04]} Bg7 {[%emt 0:00:00]} 35. Qh4 {[%emt 0:02:55]} Nd3 {[%emt 0:00:00]} 36. Be3 {[%emt 0:01:38]} gxf5 {[%emt 0:01:31]} 37. Bxb7 {[%emt 0:04:19]} Rad8 {[%emt 0:01:19]} 38. Bc6 {[%emt 0:03:55]} Ne5 {[%emt 0:01:42]} 39. Bc5 {[%emt 0:00:28]} Qa5 {[%emt 0:00:32]} 40. Bxe7 {[%emt 0:00:47]} Ng6 {[%emt 0:00:41]} 41. Bxd8 {[%emt 0:30:15]} Rxd8 {[%emt 0:30:28]} 42. b4 {[%emt 0:03:05]} Qb6 {[%emt 0:00:00]} 43. Qf2 {[%emt 0:00:00]} Qxf2 {[%emt 0:00:00]} 44. Rxf2 {[%emt 0:00:00]} f4 {[%emt 0:00:00]} 45. Be4 {[%emt 0:00:00]} Rb8 {[%emt 0:00:00]} 46. Bxg6 {[%emt 0:00:00]} hxg6 {[%emt 0:00:00]} 47. Rxf4 {[%emt 0:00:00]} Rxb5 {[%emt 0:03:47]} 48. Rd1 {[%emt 0:00:00]} Bf8 {[%emt 0:00:00]} 49. Rd8 {[%emt 0:00:00]} Kg7 {[%emt 0:00:00]} 50. Rd7 {[%emt 0:00:00]} Bxb4 {[%emt 0:00:00]} 51. Rfxf7+ {[%emt 0:00:00]} Kh6 {[%emt 0:00:00]} 52. Rb7 {[%emt 0:00:00]} Rxb7 {[%emt 0:00:00]} 53. Rxb7 {[%emt 0:00:00]} Bc5 {[%emt 0:00:00]} 54. g3 {[%emt 0:00:00]} Bd4 {[%emt 0:00:00]} 55. Kg2 {[%emt 0:00:00]} Kg5 {[%emt 0:00:00]} 56. Kf3 {[%emt 0:00:00]} Kh6 {[%emt 0:00:00]} 57. Rd7 {[%emt 0:00:00]} Bc3 {[%emt 0:00:00]} 58. h4 {[%emt 0:00:00]} Be1 {[%emt 0:00:00]} 59. Kg4 {[%emt 0:00:00]} Bb4 {[%emt 0:00:00]} 60. Rb7 {[%emt 0:00:00]} Bc5 {[%emt 0:00:00]} 61. Kh3 {[%emt 0:00:00]} Be3 {[%emt 0:00:00]} 62. g4 {[%emt 0:00:00]} g5 {[%emt 0:00:00]} 63. h5 {[%emt 0:00:00]} Bf4 {[%emt 0:00:00]} 64. Kg2 {[%emt 0:00:00]} 1-0